Cogmind - Beta 17 @@@ ROGUE MODE // 2026.08.16 @ 14:10:44 Player: Fedop Result: Destroyed by FD-RZ2(R) with Subdweller Machine Gun Performance ------------- Evolutions (0) 0 Regions Visited (3) 600 Robots Destroyed (36) 180 Value Destroyed (851) 851 Prototype IDs (3) 60 Alien Tech Used (0) 0 Bonus (0) 0 TOTAL SCORE: 1691 Bonus ------- None Cogmind --------- Core Integrity 0/250 Matter 190/300 Energy 100/100 System Corruption 0% Temperature Cool (0) Movement Core (150) Ox2 Location -10/Subcaves Parts ------- > --- POWER (1) -------- (None) > --- PROPULSION (2) --- (None) > --- UTILITY (2) ------ Small Storage Unit Core Shielding > --- WEAPON (2) ------- Mining Claw > --- INVENTORY (8) ---- Experimental Sensor Array Improved Terrain Scanner Seismic Detector Backup Plating I Peak State ------------ > --- POWER ------------ Light Nuclear Core > --- PROPULSION ------- Light Treads Light Treads > --- UTILITY ---------- Small Storage Unit Experimental Sensor Array > --- WEAPON ----------- Beam Cannon Grenade Launcher > --- INVENTORY -------- Light Treads Improved Terrain Scanner Seismic Detector Core Shielding Propulsion Shielding Backup Plating I Light Cannon Mining Claw [Rating: 18] Favorites ----------- Power Light Nuclear Core Engine Light Ion Engine Power Core Light Nuclear Core Propulsion Light Treads Treads Light Treads Utility Small Storage Unit Device Improved Terrain Scanner Storage Small Storage Unit Protection Propulsion Shielding Weapon Beam Cannon Energy Gun Medium Laser Energy Cannon Beam Cannon Ballistic Gun Assault Rifle Ballistic Cannon Light Cannon Launcher Grenade Launcher Slashing Weapon Mining Claw Build | -11 -10 -10 -10 ------- Run | Yrd Mat Min Sub Slots Evolved . | . . . . Power . | . . . . Propulsion . | . . . . Utility . | . . . . Weapon . | . . . . Parts Attached 23 | 8 9 2 4 Power 5 | 2 2 . 1 Engine 3 | 2 . . 1 Core 2 | . 2 . . Reactor . | . . . . Propulsion 3 | 2 . . 1 Treads 3 | 2 . . 1 Leg . | . . . . Wheel . | . . . . Hover . | . . . . Flight . | . . . . Utility 6 | 2 2 1 1 Device 3 | 1 . 1 1 Storage 1 | 1 . . . Processor . | . . . . Hackware . | . . . . Protection 2 | . 2 . . Artifact . | . . . . Weapon 9 | 2 5 1 1 Energy Gun 2 | 2 . . . Energy Cannon 2 | . 2 . . Ballistic Gun 1 | . 1 . . Ballistic Cannon 1 | . 1 . . Launcher 2 | . 1 1 . Special Weapon . | . . . . Impact Weapon . | . . . . Slashing Weapon 1 | . . . 1 Piercing Weapon . | . . . . Special Melee Weapon . | . . . . Unidentified Prototypes 1 | . . 1 . Parts Lost 9 | . 1 . 8 Power 3 | . 1 . 2 Propulsion 3 | . . . 3 Utility . | . . . . Weapon 3 | . . . 3 Highest Loss Streak 8 | . 1 . 8 To Critical Strikes . | . . . . Average Backups 6 | 1 6 8 7 Power . | . . . . Propulsion . | . . . . Utility 2 | . 2 4 4 Weapon 2 | . 3 2 1 Tool/Special . | . . . . Unused Backups 2 | 1 . 1 . Power . | . . . . Propulsion . | . . . . Utility . | . . . . Weapon 2 | 1 . 1 . Tool/Special . | . . . . Average Slot Usage (%) 98 | . 99 100 92 Engine 4 | . 6 . 2 Core 9 | . 7 14 10 Treads 27 | . 28 28 23 Device 3 | . 3 . 10 Storage 13 | . 13 14 14 Protection 10 | . 10 13 3 Energy Gun 5 | . 7 . . Energy Cannon 11 | . 11 14 11 Ballistic Gun 2 | . 2 . . Ballistic Cannon 1 | . 1 . 3 Launcher 5 | . 3 13 9 Peak Build Rating 18 | 9 11 18 11 Average Rating 9 | 6 8 10 9 On Entrance 7 | . 9 10 11 Avg Prop Armor Cover (%) 22 | . 22 . . Naked Turns . | . . . . Heaviest Build 18 | 13 17 18 18 Greatest Support 40 | 40 40 40 40 Greatest Overweight (x) 4 | . 4 . 2 Average Overweight (x) . | . . . . Largest Inventory Capacity 8 | 8 8 8 8 Average Capacity 7 | 7 7 8 8 Most Carried 8 | 3 8 8 8 Average Carried 6 | 1 6 7 7 Final Capacity 8 | 8 8 8 8 Final Carried 8 | 2 8 8 4 Class Distribution -------------------- 100% | Mutant Dominant Class ---------------- Mutant | -10/Materials Mutant | -10/Mines Mutant | -10/Subcaves Resources | -11 -10 -10 -10 ----------- Run | Yrd Mat Min Sub Matter Collected 770 | 168 556 46 . Remotely . | . . . . Salvage Created 799 | 46 745 8 . Parts 54 | 8 43 2 1 Haulers Intercepted 2 | . 2 . . Recyclers Shooed 2 | . 2 . . Parts Field Recycled . | . . . . Retrieved Matter . | . . . . Parts Self-Destructed . | . . . . Prevented . | . . . . Parts Restored . | . . . . Kills | -11 -10 -10 -10 ------- Run | Yrd Mat Min Sub Combat Hostiles Destroyed 27 | . 23 3 1 Melee 2 | . . 1 1 Guns 7 | . 7 . . Cannons 5 | . 5 . . AOE 13 | . 11 2 . Classes Destroyed 8 | 1 6 . 1 Worker 2 | . 2 . . Builder 1 | . 1 . . Tunneler 2 | 2 . . . Hauler 2 | . 2 . . Watcher 2 | . 2 . . Swarmer 9 | . 6 3 . Grunt 17 | . 17 . . Subdweller 1 | . . . 1 Best Kill Streak 5 | 2 5 3 1 Combat Bots Only 4 | . 4 3 1 Max Kills in Single Turn 2 | 1 2 2 1 Gunslinging . | . . . . Exploded 2 | . 2 2 . Melee 1 | . . 1 1 Uniques/NPCs Destroyed . | . . . . Combat | -11 -10 -10 -10 -------- Run | Yrd Mat Min Sub Hostile Shots Fired 124 | . 82 7 35 Missed 35 | . 25 . 10 Hits 89 | . 57 7 25 Projectile 89 | . 57 7 25 AOE 5 | . . . 5 Critical Strikes 1 | . . . 1 Damage Taken 1495 | . 644 51 800 Core 264 | . 109 7 148 Absorbed by Shields . | . . . . Redirected to Shielding 67 | . 40 1 26 Regen/Repaired (Parts) 40 | . 40 . . Core Remaining (%) 100 | 100 . . . Volleys Fired 87 | 3 74 1 9 Largest 2 | 2 2 2 2 Hottest 120 | 90 120 93 90 Shots Fired 165 | 6 144 2 13 Gun 92 | 6 86 . . Cannon 55 | . 43 1 11 Launcher 18 | . 15 1 2 Special . | . . . . Kinetic 45 | . 38 . 7 Thermal 99 | 3 91 1 4 Explosive 18 | . 15 1 2 Electromagnetic 3 | 3 . . . Robot Hit Streak 8 | 3 8 1 6 Robot Miss Streak 5 | 3 5 1 1 Penetration Max . | . . . . Secondary Targets . | . . . . Shots Hit Robots 92 | 3 76 1 12 Core Hits 57 | 2 50 3 2 Critical Kills . | . . . . Critical Parts Destroyed . | . . . . Critical Strikes 3 | . 3 . . Burn 3 | . 3 . . Melee Attacks 1 | . . . 1 Impact . | . . . . Slashing 1 | . . . 1 Piercing . | . . . . Sneak Attacks . | . . . . Combat Hostiles . | . . . . Follow-up Attacks . | . . . . Damage Inflicted 2304 | 49 1863 120 272 Guns 661 | 49 612 . . Cannons 556 | . 397 . 159 Explosions 1052 | . 852 112 88 Melee 25 | . . . 25 Ramming 10 | . 2 8 . Kinetic 406 | . 299 . 107 Thermal 787 | 25 710 . 52 Explosive 1052 | . 852 112 88 Electromagnetic 24 | 24 . . . Impact . | . . . . Slashing 25 | . . . 25 Piercing . | . . . . Highest Corruption . | . . . . Average Corruption . | . . . . Corruption Purged . | . . . . Corruption Blocked . | . . . . Overload Shots . | . . . . Overflow Damage 33 | . 29 . 4 Projectiles 12 | . 12 . . Explosions 21 | . 17 . 4 Melee . | . . . . Knockbacks 3 | . . . 3 Impact . | . . . . Kinetic 3 | . . . 3 Secondary . | . . . . Self-Inflicted Damage 64 | . 21 . 43 Shots 3 | . 1 . 2 Rammed 4 | . 1 3 . Targets Rammed 5 | . 1 4 . Kicked . | . . . . Crushed 1 | . . 1 . Highest Temperature 300 | 60 300 39 280 Average Temperature 75 | 26 75 21 160 Received Heat Transfer 668 | . 270 . 398 Effects 2 | . 2 . . Interference 2 | . 2 . . Siege Activations . | . . . . Martial Activations . | . . . . Shielding Activations . | . . . . Robots Disrupted . | . . . . Combat Hostiles . | . . . . Robots Corrupted . | . . . . Combat Hostiles . | . . . . Parts Fried . | . . . . Impact Corruptions . | . . . . Robots Melted . | . . . . Combat Hostiles . | . . . . Parts Melted 3 | . 3 . . Heat Transferred 2257 | 74 2072 . 111 Parts Sabotaged . | . . . . Parts Stolen . | . . . . Parts Stripped . | . . . . Power Chain Reactions . | . . . . Alert | -11 -10 -10 -10 ------- Run | Yrd Mat Min Sub Maximum Alert Level 1 | . 1 . . Low Security (%) 56 | 100 40 100 . Level 1 43 | . 59 . . Level 2 . | . . . . Level 3 . | . . . . Level 4 . | . . . . Level 5 . | . . . . High Security . | . . . . Max Security . | . . . . Peak Influence 336 | 5 336 126 . Initial 103 | . . 103 . Average 145 | . 182 72 . Influence Increases 886 | 10 783 93 . Destroy 0b10 Robot/C 520 | . 460 60 . Destroy 0b10 Robot/NC 45 | 10 35 . . Destroy Leader 118 | . 108 10 . Successful Hack 14 | . 14 . . Disable Machine 90 | . 75 15 . Destroy Structure 84 | . 76 8 . Partial Spotted 15 | . 15 . . Influence Decreases 886 | 10 516 334 26 Entered New Map 178 | . . 164 14 Time Decay 698 | 10 506 170 12 Lost Part 10 | . 10 . . Squads Dispatched 6 | . 6 . . Investigation 4 | . 4 . . Extermination . | . . . . Reinforcement 2 | . 2 . . Assault . | . . . . Garrison . | . . . . Intercept . | . . . . Searches Triggered . | . . . . Construction Impeded . | . . . . Haulers Reinforced . | . . . . Active Scanning Responses . | . . . . Cargo Convoy Interrupts . | . . . . Stealth | -11 -10 -10 -10 --------- Run | Yrd Mat Min Sub Distress Signals 2 | . 2 . . Communications Jammed . | . . . . Distress Signals . | . . . . Times Spotted 34 | . 28 3 3 Peak Tracking Total 4 | . 4 3 3 Tactical Retreats . | . . . . Traps | -11 -10 -10 -10 ------- Run | Yrd Mat Min Sub Traps Triggered 2 | . 2 . . Indirectly . | . . . . Trap Hack Attempts . | . . . . Triggered . | . . . . Disarmed . | . . . . Reprogrammed . | . . . . Reused . | . . . . Traps Extracted . | . . . . Installed . | . . . . Triggered . | . . . . Machines | -11 -10 -10 -10 ---------- Run | Yrd Mat Min Sub Machines Disabled 6 | . 5 1 . Max in Single Turn 2 | . 2 1 . Machines Repaired . | . . . . Machines Dismantled . | . . . . Machines Sabotaged . | . . . . Overloaded Fab Kills . | . . . . Hacking | -11 -10 -10 -10 --------- Run | Yrd Mat Min Sub Machines Accessed 8 | . 8 . . Terminals 5 | . 5 . . Fabricators . | . . . . Repair Stations 1 | . 1 . . Recycling Units 2 | . 2 . . Scanalyzers . | . . . . Garrison Access . | . . . . Total Hacks 22 | . 22 . . Successful 9 | . 9 . . Failed 13 | . 13 . . Catastrophic 4 | . 4 . . Database Lockouts . | . . . . Manual 8 | . 8 . . Terminals 17 | . 17 . . Fabricators . | . . . . Repair Stations 3 | . 3 . . Recycling Units 2 | . 2 . . Scanalyzers . | . . . . Garrison Access . | . . . . Terminal Hacks 2 | . 2 . . Prototype ID Bank 1 | . 1 . . Registered Components 1 | . 1 . . Fabricator Hacks . | . . . . Repair Station Hacks 3 | . 3 . . Scan Component 1 | . 1 . . Repair 1 | . 1 . . Refit 1 | . 1 . . Recycling Unit Hacks 2 | . 2 . . Report Inventory 2 | . 2 . . Scanalyzer . | . . . . Garrison Access Hacks . | . . . . Unauthorized Hacks 2 | . 2 . . Terminals 2 | . 2 . . Botnet 2 | . 2 . . Fabricators . | . . . . Repair Stations . | . . . . Recycling Units . | . . . . Scanalyzers . | . . . . Garrison Access . | . . . . Data Cores Recovered . | . . . . Used . | . . . . Hacking Detections 6 | . 6 . . Full Trace Events 3 | . 3 . . Feedback Events . | . . . . Feedback Blocked . | . . . . Robot Schematics Acquired . | . . . . Robots Built . | . . . . Authchips . | . . . . Time . | . . . . Total Robot Build Rating . | . . . . Part Schematics Acquired . | . . . . Parts Built . | . . . . Authchips . | . . . . Time . | . . . . Total Part Build Rating . | . . . . Part Studies Acquired . | . . . . Parts Repaired 1 | . 1 . . Time 26 | . 26 . . Parts Recycled . | . . . . Recycled Matter . | . . . . Retrieved Matter . | . . . . Retrieved Components . | . . . . Parts Scanalyzed . | . . . . Part Schematics Acquired . | . . . . Parts Damaged . | . . . . Bothacking | -11 -10 -10 -10 ------------ Run | Yrd Mat Min Sub Used RIF Installer . | . . . . Robots Hacked . | . . . . Non-combat . | . . . . Combat . | . . . . Robot Hacks Applied . | . . . . Relay Couplers Released . | . . . . Fabnet Peak Effective % . | . . . . Robots Rewired . | . . . . Allies Hacked . | . . . . Hacks Repelled . | . . . . Allies | -11 -10 -10 -10 -------- Run | Yrd Mat Min Sub Total Allies . | . . . . Largest Group . | . . . . Highest-Rated Group . | . . . . Highest-Rated Ally . | . . . . Total Orders . | . . . . Ally Attacks . | . . . . Total Damage . | . . . . Kills . | . . . . Allies Corrupted . | . . . . Allies Melted . | . . . . Intel | -11 -10 -10 -10 ------- Run | Yrd Mat Min Sub Active Infowar (turns) 497 | 82 315 8 92 Sensors 8 | . . 8 . Terrain 397 | 82 315 . . Seismic 92 | . . . 92 Robot Analysis Total . | . . . . Derelict Logs Recovered . | . . . . Drone Launches . | . . . . Drone Recoveries . | . . . . Exploration | -11 -10 -10 -10 ------------- Run | Yrd Mat Min Sub Turns Passed 2135 | 188 1472 356 119 Spaces Moved 963 | 64 676 206 17 Core 59 | 4 53 . 2 Treads 904 | 60 623 206 15 Legs . | . . . . Wheels . | . . . . Hover . | . . . . Flight . | . . . . Fastest Speed 50 | 50 160 160 150 Average Speed 164 | 153 167 160 158 Slowest Speed 250 | 160 250 160 160 Overloaded Moves . | . . . . Propulsion Burnouts . | . . . . Robots Hopped . | . . . . Potential Cave-ins . | . . . . Cave-ins Triggered . | . . . . Exploration Rate (%) 32 | 3 98 26 2 Regions Visited 3 Branch Regions 2 Pre-discovered Areas . | . . . . Known Exits Taken . | . . . . Unknown Exits Taken 3 | 1 1 1 . Scrap Searched 1 | . . 1 . Spaces Dug . | . . . . Terrain Destroyed 81 | . 67 10 4 Melee . | . . . . Projectile . | . . . . AOE 81 | . 67 10 4 Terrain Rammed . | . . . . Walls Destroyed . | . . . . Machines Disabled . | . . . . Actions | -11 -10 -10 -10 --------- Run | Yrd Mat Min Sub Total 1334 | 145 870 228 91 Wait 205 | 66 75 7 57 Move 960 | 63 675 205 17 Hop . | . . . . Pick Up 18 | 4 11 3 . Fast Attach 14 | 6 7 1 . Attach 7 | 1 2 . 4 Detach 3 | . 3 . . Swap 20 | 1 13 3 3 Drop 14 | 1 9 4 . Fire 87 | 3 74 1 9 Melee 1 | . . . 1 Ram . | . . . . Kick . | . . . . Crush 5 | . 1 4 . Escape Stasis . | . . . . Rewire . | . . . . Trap . | . . . . Miscellaneous . | . . . . Route ------- -11/Scrapyard -10/Materials (discovered 5 exits: [*Mat x3] / [*Min x2]) -10/Mines -10/Subcaves History --------- Turn | Location | Event 47 | -11/Scrapyard | Discovered new exit (range 15) 189 | -11/Scrapyard | Entered Materials 309 | -10/Materials | Build established: Mutant 399 | -10/Materials | Discovered new exit (range 10) 522 | -10/Materials | Discovered new exit (range 9) 634 | -10/Materials | Discovered new exit (range 13) 888 | -10/Materials | Discovered new exit (range 16) 1255 | -10/Materials | Repaired Propulsion Shielding 1365 | -10/Materials | Discovered new exit (range 15) 1661 | -10/Materials | Entered Mines 1662 | -10/Mines | Assembled infested the area 1718 | -10/Mines | Found a damaged Exp. Sensor Array with a note attached 1722 | -10/Mines | Found Prototype Device 1723 | -10/Mines | Identified Exp. Sensor Array 1743 | -10/Mines | Received a Rocket Launcher from a helpful Derelict 2009 | -10/Mines | Discovered new exit (range 5) 2017 | -10/Mines | Entered Subcaves 2018 | -10/Subcaves | Approached by a straggling Scientist 2085 | -10/Subcaves | Ambushed by Subdwellers from Twisted Machinery 2102 | -10/Subcaves | Ambushed by Subdweller buried in earth 2108 | -10/Subcaves | Core integrity fell below 50% 2133 | -10/Subcaves | Core integrity fell below 20% 2136 | -10/Subcaves | Destroyed by FD-RZ2(R) with Subdweller Machine Gun Last Messages --------------- Machinery. 02100_ Lgt. Treads destroyed. 02101_ F5-IU0(c) destroyed. [Achievement: Do Not Disturb] 02103_ Z5-C05(R): "ARGHSUB!" 02104_ FD-RZ2(R) knocked back. 02104_ Lgt. Nuclear Core destroyed. 02104_ Lgt. Treads destroyed. 02113_ Beam Cannon destroyed. 02114_ Z5-C05(R) knocked back. 02121_ Lgt. Cannon destroyed. 02121_ Destroyed Lgt. Cannon. 02123_ Critical hit (Meltdown: +290). 02125_ Rocket Launcher destroyed. 02129_ Subatomizers dissect the Tech Extrapolator. 02129_ Lgt. Treads destroyed. 02129_ Lgt. Ion Engine destroyed. 02130_ The unstable cave ceiling collapses. 02131_ Z5-C05(R) destroyed. Map ----- +----------------------------------------------------+ | | | | | | | | | | | | | | | | | | | | | ?????????????????????????????????????????????????? | | ?????????????????????????????????????????????????? | | ?????????????????????????????????????????????????? | | ?????????????????????????????????????????????????? | | ?????????????????????????????????????????????????? | | ?????????????????????????????????????????????????? | | ?????????????????????????????????????????????????? | | ?????????????????????????????????????????????????? | | ?????????????????????????????????????????????????? | | ?????????????????????######??????????????????????? | | ????????????????????## ###????????????????????? | | ???????????????????## ##???????????????????? | | ???????????????????# ##??????????????????? | | ???????????????????# #??????????????????? | | ???????????????????#;; #####???????????????? | | ??????????????????## @ # # ####????????? | | ???????????????###; ????????? | | ??????????????##"" #???????????? | | ??????????????#"" ## # ##???????????? | | ?????????????? ""## ##?????????????????? | | ??????????????????## #??????????????????? | | ??????????????????# R ##?????????????????? | | ???????????????? #?????????????????? | | ???????????????## R #?????????????????? | | ????????????????## # % #?????????????????? | | ?????????????????# # ##; !% #?????????????????? | | ???????????????? ?## ;;;;% ????????????????? | | ??????????????? ???### ##% ??????????????? | | ?????????????? #####??????##?# #????????????? | | ??????????????#???????????????? #???????????? | | ???????????????????????????????? #??????????? | | ???????????????????????????????? #??????????? | | ????????????????????????????????? #?????????? | | ?????????????????????????????????? #?????????? | | ???????????????????????????????????"""" ?????????? | | ???????????????????????????????????? ???????????? | | ?????????????????????????????????????????????????? | | ?????????????????????????????????????????????????? | | ?????????????????????????????????????????????????? | | ?????????????????????????????????????????????????? | +----------------------------------------------------+ Best States ------------- Heat Dissipation 25 Energy Generation 14 Energy Capacity 160 Matter Stores 300 Matter Capacity 300 Sight Range 16 Robot Scan Range 20 Terrain Scan Range 16 Terrain Scan Density 10 Armor Coverage 80 Core Shielding 20 Propulsion Shielding 33 Evasion (%) 40 Recoil Reduction 2 Item Schematics ----------------- None Robot Schematics ------------------ None Fabricated ------------ Nothing Repaired ---------- Propulsion Shielding | 20% | -10/Materials Studied --------- None Alien Tech Used ----------------- None Achievements -------------- Do Not Disturb Challenges ------------ None Game ------ Seed PlasmaNetworkMegashotty Manual? 0 Play Time 00:20:24 Cumulative 56.1 hours Start 2026.08.16 @ 13:48:43 End 2026.08.16 @ 14:10:44 Sessions 1 Manual Loads 0 Difficulty Rogue Special Mode None Game No. 42 Rogue 42 Adventurer 0 Explorer 0 Win Type - Total 0 Types 0/0/0/0/0/0/0/0/0/0 Lore% 22 Gallery% 31 Achievement% 26 Wizard Run 0 Options --------- Layout 1 ASCII 0 Keyboard 1 Movement Vi Keybinds 0 Fullscreen 2 Font 24/Smallcaps Map View 50x35 Zoom Use 0% Tactical HUD 1 Map Filters NONE Filters NONE Steam 1 RUN: 186ef457-40c6-4c02-826d-6ebda4c4d684